fUSD/lending_fUSD_20250503
["ID","MTS","AMOUNT","RATE_DAILY","PERIOD"]
[359665672,1746232251905,-156.63736674,0.000199,2]
[359665673,1746232251917,-450.0,0.00019974,2]
[359665674,1746232251931,-8175.96263326,0.0002,2]
[359665675,1746232251949,-1187.22875061,0.0002,2]
[359665676,1746232251963,-3872.22874411,0.0002,2]
[359665677,1746232251979,-13368.19984244,0.0002,2]
[359665678,1746232252045,-450.0,0.000197,2]
[359665679,1746232252058,-392.1,0.0002,2]
[359665680,1746232283308,2208.57863499,0.00019501,2]
[359665681,1746232330231,250.0,0.00017,2]
[359665682,1746232331292,300.0,0.00019,2]
[359665683,1746232554632,300.0,0.00032877,60]
[359665684,1746232585361,300.0,0.00030137,120]
[359665685,1746232586263,1263.0,0.00030137,120]
[359665686,1746232599747,5000.0,0.00032877,60]
[359665687,1746232632694,150.050309,0.0003287,98]
[359665688,1746232658121,150.050309,0.0003287,99]
[359665689,1746232666947,150.050309,0.0003287,100]
[359665690,1746232672505,150.050309,0.0003287,101]
[359665691,1746232676684,150.050309,0.0003287,102]
[359665692,1746232680322,150.050309,0.0003287,103]
[359665693,1746232684814,150.050309,0.0003287,104]
[359665694,1746232688394,150.050309,0.0003287,105]
[359665695,1746232695291,150.050309,0.0003287,106]
[359665696,1746232717237,166.66,0.00019417,2]
[359665697,1746232720999,150.050309,0.0003287,60]
[359665698,1746232727277,150.050309,0.0003287,61]
[359665699,1746232730797,150.050309,0.0003287,62]
[359665700,1746232734280,150.050309,0.0003287,63]
[359665701,1746232739418,150.050309,0.0003287,64]
[359665702,1746232743554,150.050309,0.0003287,65]
[359665703,1746232744427,169.96,0.00018852,2]
[359665704,1746232748907,150.050309,0.0003287,66]
[359665705,1746232755283,150.050309,0.0003287,67]
[359665706,1746232758957,150.050309,0.0003287,68]
[359665707,1746232762758,150.050309,0.0003287,69]
[359665708,1746232762788,2874.0,0.00019,2]
[359665709,1746232767391,150.050309,0.0003287,70]
[359665710,1746232772255,150.050309,0.0003287,71]
[359665711,1746232776341,150.050309,0.0003287,72]
[359665712,1746232780195,150.050309,0.0003287,73]
[359665713,1746232783777,150.050309,0.0003287,74]
[359665714,1746232787205,150.050309,0.0003287,75]
[359665715,1746232790700,150.050309,0.0003287,76]
[359665716,1746232797227,150.050309,0.0003287,77]
[359665717,1746232801079,150.050309,0.0003287,78]
[359665718,1746232804810,150.050309,0.0003287,79]
[359665719,1746232808217,150.050309,0.0003287,80]
[359665720,1746232814129,150.050309,0.0003287,81]
[359665721,1746232818217,150.050309,0.0003287,82]
[359665722,1746232850955,15000.00000001,0.00019501,2]
[359665723,1746232884593,162.14,0.00032876,60]
[359665724,1746233088652,-179.01422001,0.000196,2]
[359665725,1746233100206,150.050309,0.0003287,61]
[359665726,1746233103494,150.050309,0.0003287,62]
[359665727,1746233106604,150.050309,0.0003287,63]
[359665728,1746233109917,150.050309,0.0003287,64]
[359665729,1746233113226,150.050309,0.0003287,65]
[359665730,1746233116371,150.050309,0.0003287,66]
[359665731,1746233119485,150.050309,0.0003287,67]
[359665732,1746233123274,150.050309,0.0003287,68]
[359665733,1746233127015,150.050309,0.0003287,69]
[359665734,1746233130589,150.050309,0.0003287,70]
[359665735,1746233133752,150.050309,0.0003287,71]
[359665736,1746233137980,150.050309,0.0003287,72]
[359665737,1746233141099,150.050309,0.0003287,73]
[359665738,1746233144910,150.050309,0.0003287,74]
[359665739,1746233147897,418.97,0.00016819,2]
[359665740,1746233148145,418.97,0.00019083,2]
[359665741,1746233180695,150.050309,0.0003287,75]
[359665742,1746233183833,150.050309,0.0003287,76]
[359665743,1746233187131,150.050309,0.0003287,77]
[359665744,1746233190544,150.050309,0.0003287,78]
[359665745,1746233194060,150.050309,0.0003287,79]
[359665746,1746233356126,1000.0,0.00018756,2]
[359665750,1746233431503,-1200.0,0.00019599,2]
[359665751,1746233431513,-136.31236293,0.00019599,2]
[359665755,1746233431557,-163.68763707,0.00019599,2]
[359665756,1746233431566,-151.0,0.000196,2]
[359665757,1746233431576,-1905.96967343,0.000196,2]
[359665758,1746233431587,-1455.41289383,0.000196,2]
[359665759,1746233431599,-162.50473659,0.000196,2]
[359665760,1746233431613,-1905.96967337,0.00019633,2]
[359665761,1746233431625,-1455.4128938,0.00019633,2]
[359665762,1746233431637,-207.4,0.00019654,2]
[359665763,1746233431647,-151.0,0.00019654,2]
[359665764,1746233431656,-1905.96967337,0.00019667,2]
[359665765,1746233431666,-1455.4128938,0.00019667,2]
[359665766,1746233431679,-200.0,0.0001967,2]
[359665767,1746233431689,-151.0,0.00019688,2]
[359665768,1746233431699,-668.65185757,0.00019688,2]
[359665769,1746233431708,-151.0,0.00019688,2]
[359665770,1746233431718,-943.40271865,0.00019689,2]
[359665771,1746233431727,-500.0,0.00019698,2]
[359665772,1746233431736,-500.0,0.00019698,2]
[359665773,1746233431746,-500.0,0.00019698,2]
[359665774,1746233431756,-500.0,0.00019698,2]
[359665775,1746233431766,-500.0,0.00019698,2]
[359665776,1746233431775,-500.0,0.00019698,2]
[359665777,1746233431785,-500.0,0.00019698,2]
[359665778,1746233431795,-500.0,0.00019698,2]
[359665779,1746233431804,-500.0,0.00019698,2]
[359665780,1746233431814,-500.0,0.00019698,2]
[359665781,1746233431823,-500.0,0.00019698,2]
[359665782,1746233431832,-500.0,0.00019698,2]
[359665783,1746233431842,-500.0,0.00019698,2]
[359665784,1746233431850,-500.0,0.00019698,2]
[359665785,1746233431859,-288.45411154,0.00019698,2]
[359665786,1746233431868,-3855.25123698,0.00019698,2]
[359665788,1746233431880,-5392.54857079,0.00019698,2]
[359665789,1746233431890,-450.0,0.00019699,2]
[359665791,1746233431900,-450.0,0.00019699,2]
[359665793,1746233431911,-140.46906406,0.00019699,2]
[359665795,1746233431922,-251.04828034,0.00019699,2]
[359665797,1746233431934,-58.4826556,0.00019699,2]
[359665800,1746233431944,-450.0,0.00019699,2]
[359665802,1746233431954,-450.0,0.00019699,2]
[359665803,1746233431963,-618.06,0.00019699,2]
[359665804,1746233431974,-450.0,0.00019699,2]
[359665805,1746233431983,-450.0,0.00019699,2]
[359665806,1746233431993,-450.0,0.00019699,2]
[359665807,1746233432003,-450.0,0.00019699,2]
[359665808,1746233432012,-450.0,0.00019699,2]
[359665809,1746233432021,-450.0,0.00019699,2]
[359665810,1746233432030,-450.0,0.00019699,2]
[359665811,1746233432039,-298.56431226,0.00019699,2]
[359665812,1746233432049,-450.0,0.00019699,2]
[359665813,1746233432058,-450.0,0.00019699,2]
[359665814,1746233432067,-450.0,0.00019699,2]
[359665815,1746233432077,-450.0,0.00019699,2]
[359665816,1746233432086,-450.0,0.00019699,2]
[359665817,1746233432095,-450.0,0.00019699,2]
[359665818,1746233432105,-872.76,0.00019699,2]
[359665819,1746233432114,-110.73636127,0.00019699,2]
[359665820,1746233432138,-300.0,0.00019699,2]
[359665827,1746233437596,-416.05653873,0.00019699,2]
[359665828,1746233437605,-450.0,0.00019699,2]
[359665829,1746233437614,-450.0,0.00019699,2]
[359665830,1746233437623,-313.77584382,0.00019699,2]
[359665831,1746233437633,-136.22415618,0.00019699,2]
[359665832,1746233437643,-450.0,0.00019699,2]
[359665833,1746233437652,-450.0,0.00019699,2]
[359665834,1746233437661,-449.83095998,0.00019699,2]
[359665835,1746233437673,-0.16904002,0.00019699,2]
[359665836,1746233437685,-424.36974498,0.00019699,2]
[359665837,1746233437698,-151.27643602,0.00019699,2]
[359665838,1746233437707,-450.0,0.00019699,2]
[359665839,1746233437717,-450.0,0.00019699,2]
[359665840,1746233437726,-450.0,0.00019699,2]
[359665841,1746233437735,-221.24367296,0.00019699,2]
[359665842,1746233437747,-423.17632704,0.00019699,2]
[359665843,1746233437758,-144.64633779,0.00019699,2]
[359665844,1746233437770,-305.35366221,0.00019699,2]
[359665845,1746233437779,-450.0,0.00019699,2]
[359665846,1746233437789,-464.08,0.00019699,2]
[359665847,1746233437798,-450.0,0.00019699,2]
[359665848,1746233437807,-450.0,0.00019699,2]
[359665849,1746233437817,-450.0,0.00019699,2]
[359665850,1746233437826,-450.0,0.00019699,2]
[359665851,1746233437836,-450.0,0.00019699,2]
[359665852,1746233437845,-172.53697117,0.00019699,2]
[359665853,1746233437856,-277.46302883,0.00019699,2]
[359665854,1746233437866,-450.0,0.00019699,2]
[359665855,1746233437875,-450.0,0.00019699,2]
[359665856,1746233437886,-450.0,0.00019699,2]
[359665857,1746233437895,-450.0,0.00019699,2]
[359665858,1746233437904,-261.2745033,0.00019699,2]
[359665859,1746233437921,-188.7254967,0.00019699,2]
[359665860,1746233437931,-450.0,0.00019699,2]
[359665861,1746233437941,-450.0,0.00019699,2]
[359665862,1746233437951,-450.0,0.00019699,2]
[359665863,1746233437960,-450.0,0.00019699,2]
[359665864,1746233437970,-450.0,0.00019699,2]
[359665865,1746233437980,-450.0,0.00019699,2]
[359665866,1746233437990,-450.0,0.00019699,2]
[359665867,1746233437999,-450.0,0.00019699,2]
[359665868,1746233438020,-450.0,0.00019699,2]
[359665869,1746233438032,-450.0,0.00019699,2]
[359665870,1746233438041,-450.0,0.00019699,2]
[359665871,1746233438051,-450.0,0.00019699,2]
[359665872,1746233438063,-450.0,0.00019699,2]
[359665873,1746233438073,-450.0,0.00019699,2]
[359665874,1746233438082,-450.0,0.00019699,2]
[359665875,1746233438091,-450.0,0.00019699,2]
[359665876,1746233438101,-450.0,0.00019699,2]
[359665877,1746233438111,-450.0,0.00019699,2]
[359665878,1746233438120,-450.0,0.00019699,2]
[359665879,1746233438130,-450.0,0.00019699,2]
[359665880,1746233438140,-385.68715959,0.00019699,2]
[359665881,1746233438149,-450.0,0.00019699,2]
[359665882,1746233438159,-450.0,0.00019699,2]
[359665883,1746233438169,-450.0,0.00019699,2]
[359665884,1746233438180,-450.0,0.00019699,2]
[359665885,1746233438189,-450.0,0.00019699,2]
[359665886,1746233438199,-250.0,0.00019699,2]
[359665887,1746233438209,-450.0,0.00019699,2]
[359665888,1746233438218,-438.16801354,0.00019699,2]
[359665889,1746233438228,-450.0,0.00019699,2]
[359665890,1746233438238,-450.0,0.00019699,2]
[359665891,1746233438248,-450.0,0.00019699,2]
[359665892,1746233438257,-450.0,0.00019699,2]
[359665893,1746233438266,-450.0,0.00019699,2]
[359665894,1746233438275,-450.0,0.00019699,2]
[359665895,1746233438285,-450.0,0.00019699,2]
[359665896,1746233438294,-450.0,0.00019699,2]
[359665897,1746233438303,-450.0,0.00019699,2]
[359665898,1746233438312,-450.0,0.00019699,2]
[359665899,1746233438322,-450.0,0.00019699,2]
[359665900,1746233438332,-450.0,0.00019699,2]
[359665901,1746233438342,-450.0,0.00019699,2]
[359665902,1746233438351,-450.0,0.00019699,2]
[359665903,1746233438360,-450.0,0.00019699,2]
[359665904,1746233438370,-450.0,0.00019699,2]
[359665905,1746233438379,-450.0,0.00019699,2]
[359665906,1746233438389,-450.0,0.00019699,2]
[359665907,1746233438398,-450.0,0.00019699,2]
[359665908,1746233438407,-6535.83,0.00019699,2]
[359665909,1746233438417,-450.0,0.00019699,2]
[359665910,1746233438427,-714.92,0.00019699,2]
[359665911,1746233438436,-450.0,0.00019699,2]
[359665912,1746233438446,-450.0,0.00019699,2]
[359665913,1746233438455,-450.0,0.00019699,2]
[359665914,1746233438465,-540.97338673,0.00019699,2]
[359665915,1746233438475,-709.35,0.00019699,2]
[359665916,1746233438485,-538.1,0.00019699,2]
[359665917,1746233438494,-228.80013791,0.00019699,2]
[359665918,1746233438504,-907.72,0.00019699,2]
[359665919,1746233438513,-450.0,0.00019699,2]
[359665920,1746233438523,-497.61,0.00019699,2]
[359665921,1746233438533,-450.0,0.00019699,2]
[359665922,1746233438542,-450.0,0.00019699,2]
[359665923,1746233438552,-450.0,0.00019699,2]
[359665924,1746233438561,-450.0,0.00019699,2]
[359665925,1746233438570,-450.0,0.00019699,2]
[359665926,1746233438580,-450.0,0.00019699,2]
[359665927,1746233438589,-500.0,0.00019699,2]
[359665928,1746233438598,-527.6350168,0.00019699,2]
[359665929,1746233438607,-450.0,0.00019699,2]
[359665930,1746233438616,-558.9232263,0.00019699,2]
[359665931,1746233438625,-450.0,0.00019699,2]
[359665932,1746233438634,-238.08308746,0.00019699,2]
[359665933,1746233438643,-450.0,0.00019699,2]
[359665934,1746233438652,-5869.55,0.00019699,2]
[359665935,1746233438661,-253.4326633,0.00019699,2]
[359665936,1746233438670,-450.0,0.00019699,2]
[359665937,1746233438679,-450.0,0.00019699,2]
[359665938,1746233438693,-450.0,0.00019699,2]
[359665939,1746233438702,-450.0,0.00019699,2]
[359665940,1746233438711,-450.0,0.00019699,2]
[359665941,1746233438720,-450.0,0.00019699,2]
[359665942,1746233438731,-450.0,0.00019699,2]
[359665943,1746233438740,-450.0,0.00019699,2]
[359665944,1746233438749,-450.0,0.00019699,2]
[359665945,1746233438758,-450.0,0.00019699,2]
[359665946,1746233438768,-450.0,0.00019699,2]
[359665947,1746233438778,-462.76,0.00019699,2]
[359665948,1746233438787,-450.0,0.00019699,2]
[359665949,1746233438796,-450.0,0.00019699,2]
[359665950,1746233438805,-450.0,0.00019699,2]
[359665951,1746233438814,-450.0,0.00019699,2]
[359665952,1746233438823,-450.0,0.00019699,2]
[359665953,1746233438832,-450.0,0.00019699,2]
[359665954,1746233438841,-444.44741038,0.00019699,2]
[359665955,1746233438850,-450.0,0.00019699,2]
[359665956,1746233438859,-408.15101168,0.00019699,2]
[359665957,1746233438869,-450.0,0.00019699,2]
[359665958,1746233438878,-450.0,0.00019699,2]
[359665959,1746233438887,-450.0,0.00019699,2]
[359665960,1746233438896,-450.0,0.00019699,2]
[359665961,1746233438905,-450.0,0.00019699,2]
[359665962,1746233438914,-450.0,0.00019699,2]
[359665963,1746233438923,-450.0,0.00019699,2]
[359665964,1746233438932,-450.0,0.00019699,2]
[359665965,1746233438942,-479.91,0.00019699,2]
[359665966,1746233438951,-450.0,0.00019699,2]
[359665967,1746233438960,-450.0,0.00019699,2]
[359665968,1746233438969,-518.15,0.00019699,2]
[359665969,1746233438978,-450.0,0.00019699,2]
[359665970,1746233438988,-620.17,0.00019699,2]
[359665971,1746233438997,-450.0,0.00019699,2]
[359665972,1746233439007,-450.0,0.00019699,2]
[359665973,1746233439016,-450.0,0.00019699,2]
[359665974,1746233439025,-450.0,0.00019699,2]
[359665975,1746233439034,-450.0,0.00019699,2]
[359665976,1746233439043,-494.68563965,0.00019699,2]
[359665977,1746233439052,-450.0,0.00019699,2]
[359665978,1746233439061,-557.30756187,0.00019699,2]
[359665979,1746233439070,-450.0,0.00019699,2]
[359665980,1746233439079,-450.0,0.00019699,2]
[359665981,1746233439089,-450.0,0.00019699,2]
[359665982,1746233439098,-450.0,0.00019699,2]
[359665983,1746233439107,-450.0,0.00019699,2]
[359665984,1746233439118,-505.31026206,0.00019699,2]
[359665985,1746233439127,-450.0,0.00019699,2]
[359665986,1746233439137,-450.0,0.00019699,2]
[359665987,1746233439147,-450.0,0.00019699,2]
[359665988,1746233439156,-450.0,0.00019699,2]
[359665989,1746233439166,-450.0,0.00019699,2]
[359665990,1746233439175,-450.0,0.00019699,2]
[359665991,1746233439185,-2167.75,0.00019699,2]
[359665992,1746233439194,-450.0,0.00019699,2]
[359665993,1746233439205,-512.7,0.00019699,2]
[359665994,1746233439214,-509.55,0.00019699,2]
[359665995,1746233439224,-450.0,0.00019699,2]
[359665996,1746233439233,-450.0,0.00019699,2]
[359665997,1746233439243,-450.0,0.00019699,2]
[359665998,1746233439252,-478.41120817,0.00019699,2]
[359665999,1746233439262,-450.0,0.00019699,2]
[359666000,1746233439271,-450.0,0.00019699,2]
[359666001,1746233439282,-450.0,0.00019699,2]
[359666002,1746233439292,-450.0,0.00019699,2]
[359666003,1746233439302,-450.0,0.00019699,2]
[359666004,1746233439311,-450.0,0.00019699,2]
[359666005,1746233439321,-450.0,0.00019699,2]
[359666006,1746233439330,-332.84471271,0.00019699,2]
[359666007,1746233439340,-450.0,0.00019699,2]
[359666008,1746233439349,-1195.21,0.00019699,2]
[359666009,1746233439358,-450.0,0.00019699,2]
[359666010,1746233439368,-450.0,0.00019699,2]
[359666011,1746233439377,-450.0,0.00019699,2]
[359666012,1746233439387,-1205.88,0.00019699,2]
[359666013,1746233439396,-450.0,0.00019699,2]
[359666014,1746233439406,-450.0,0.00019699,2]
[359666015,1746233439415,-450.0,0.00019699,2]
[359666016,1746233439424,-450.0,0.00019699,2]
[359666018,1746233439433,-450.0,0.00019699,2]
[359666020,1746233439443,-318.17590123,0.00019699,2]
[359666021,1746233439452,-450.0,0.00019699,2]
[359666022,1746233439462,-450.0,0.00019699,2]
[359666023,1746233439471,-241.44844074,0.00019699,2]
[359666024,1746233439480,-450.0,0.00019699,2]
[359666025,1746233439489,-450.0,0.00019699,2]
[359666026,1746233439499,-450.0,0.00019699,2]
[359666027,1746233439508,-450.0,0.00019699,2]
[359666028,1746233439517,-450.0,0.00019699,2]
[359666029,1746233439526,-450.0,0.00019699,2]
[359666031,1746233439535,-450.0,0.00019699,2]
[359666032,1746233439544,-450.0,0.00019699,2]
[359666033,1746233439553,-536.64,0.00019699,2]
[359666034,1746233439562,-999.0,0.00019699,2]
[359666035,1746233439571,-512.97,0.00019699,2]
[359666036,1746233439581,-1711.16,0.00019699,2]
[359666037,1746233439590,-450.0,0.00019699,2]
[359666038,1746233439599,-450.0,0.00019699,2]
[359666039,1746233439611,-630.69,0.00019699,2]
[359666040,1746233439621,-1058.59,0.00019699,2]
[359666041,1746233439630,-450.0,0.00019699,2]
[359666042,1746233439640,-450.0,0.00019699,2]
[359666043,1746233439649,-450.0,0.00019699,2]
[359666044,1746233439658,-1386.82,0.00019699,2]
[359666045,1746233439668,-450.0,0.00019699,2]
[359666046,1746233439678,-450.0,0.00019699,2]
[359666047,1746233439687,-539.7,0.00019699,2]
[359666048,1746233439697,-731.72900141,0.00019699,2]
[359666049,1746233439706,-450.0,0.00019699,2]
[359666050,1746233439715,-528.68,0.00019699,2]
[359666051,1746233439725,-450.0,0.00019699,2]
[359666052,1746233439734,-450.0,0.00019699,2]
[359666053,1746233439743,-4931.5,0.00019699,2]
[359666054,1746233439753,-1011.87,0.00019699,2]
[359666055,1746233439762,-497.98,0.00019699,2]
[359666056,1746233439770,-450.0,0.00019699,2]
[359666057,1746233439780,-450.0,0.00019699,2]
[359666058,1746233439789,-450.0,0.00019699,2]
[359666059,1746233439798,-450.0,0.00019699,2]
[359666060,1746233439807,-450.0,0.00019699,2]
[359666061,1746233439816,-450.0,0.00019699,2]
[359666062,1746233439825,-450.0,0.00019699,2]
[359666063,1746233439835,-2960.34,0.00019699,2]
[359666064,1746233439844,-450.0,0.00019699,2]
[359666065,1746233439853,-450.0,0.00019699,2]
[359666066,1746233439862,-450.0,0.00019699,2]
[359666067,1746233439872,-1387.74,0.00019699,2]
[359666068,1746233439881,-1612.9,0.00019699,2]
[359666069,1746233439891,-450.0,0.00019699,2]
[359666070,1746233439902,-807.64,0.00019699,2]
[359666071,1746233439911,-450.0,0.00019699,2]
[359666072,1746233439921,-482.26,0.00019699,2]
[359666073,1746233439930,-450.0,0.00019699,2]
[359666074,1746233439939,-450.0,0.00019699,2]
[359666075,1746233439949,-450.0,0.00019699,2]
[359666076,1746233439959,-498.9,0.00019699,2]
[359666077,1746233439968,-469.78,0.00019699,2]
[359666078,1746233439977,-450.0,0.00019699,2]
[359666079,1746233439986,-450.0,0.00019699,2]
[359666080,1746233439996,-727.04,0.00019699,2]
[359666081,1746233440005,-450.0,0.00019699,2]
[359666082,1746233440015,-1520.88,0.00019699,2]
[359666083,1746233440024,-450.0,0.00019699,2]
[359666084,1746233440034,-450.0,0.00019699,2]
[359666085,1746233440044,-515.1,0.00019699,2]
[359666086,1746233440053,-450.0,0.00019699,2]
[359666087,1746233440062,-450.0,0.00019699,2]
[359666088,1746233440072,-574.21,0.00019699,2]
[359666089,1746233440081,-280.25488685,0.00019699,2]
[359666090,1746233440090,-450.0,0.00019699,2]
[359666091,1746233440100,-450.0,0.00019699,2]
[359666092,1746233440109,-538.64438554,0.00019699,2]
[359666093,1746233440119,-450.0,0.00019699,2]
[359666094,1746233440128,-450.0,0.00019699,2]
[359666095,1746233440138,-450.0,0.00019699,2]
[359666096,1746233440147,-450.0,0.00019699,2]
[359666097,1746233440157,-450.0,0.00019699,2]
[359666099,1746233440166,-450.0,0.00019699,2]
[359666101,1746233440176,-450.0,0.00019699,2]
[359666103,1746233440185,-450.0,0.00019699,2]
[359666105,1746233440195,-450.0,0.00019699,2]
[359666107,1746233440204,-450.0,0.00019699,2]
[359666109,1746233440214,-450.0,0.00019699,2]
[359666111,1746233440223,-759.3,0.00019699,2]
[359666113,1746233440233,-450.0,0.000197,2]
[359666115,1746233440242,-170.12431519,0.000197,2]
[359666117,1746233440254,-450.0,0.000197,2]
[359666119,1746233440265,-450.0,0.000197,2]
[359666121,1746233440275,-450.0,0.000197,2]
[359666123,1746233440284,-450.0,0.000197,2]
[359666125,1746233440293,-450.0,0.000197,2]
[359666127,1746233440303,-450.0,0.000197,2]
[359666128,1746233440312,-450.0,0.000197,2]
[359666129,1746233440321,-450.0,0.000197,2]
[359666131,1746233440330,-450.0,0.000197,2]
[359666133,1746233440339,-450.0,0.000197,2]
[359666134,1746233440349,-636.23,0.000197,2]
[359666135,1746233440358,-450.0,0.000197,2]
[359666136,1746233440367,-450.0,0.000197,2]
[359666137,1746233440375,-450.0,0.000197,2]
[359666138,1746233440384,-450.0,0.000197,2]
[359666139,1746233440394,-232.77923705,0.000197,2]
[359666140,1746233440403,-451.62,0.000197,2]
[359666141,1746233440412,-450.0,0.000197,2]
[359666142,1746233440421,-450.0,0.000197,2]
[359666143,1746233440430,-450.0,0.000197,2]
[359666144,1746233440438,-450.0,0.000197,2]
[359666145,1746233440447,-450.0,0.000197,2]
[359666146,1746233440456,-450.0,0.000197,2]
[359666147,1746233440465,-450.0,0.000197,2]
[359666148,1746233440474,-450.0,0.000197,2]
[359666149,1746233440483,-450.0,0.000197,2]
[359666150,1746233440491,-250.69866356,0.000197,2]
[359666151,1746233440500,-450.0,0.000197,2]
[359666152,1746233440509,-450.0,0.000197,2]
[359666153,1746233440518,-497.26,0.000197,2]
[359666154,1746233440527,-450.0,0.000197,2]
[359666155,1746233440536,-450.0,0.000197,2]
[359666156,1746233440546,-594.26,0.000197,2]
[359666157,1746233440556,-450.0,0.000197,2]
[359666158,1746233440565,-450.0,0.000197,2]
[359666159,1746233440574,-450.0,0.000197,2]
[359666160,1746233440583,-450.0,0.000197,2]
[359666161,1746233440592,-450.0,0.000197,2]
[359666162,1746233440602,-450.0,0.000197,2]
[359666163,1746233440611,-450.0,0.000197,2]
[359666164,1746233440619,-450.0,0.000197,2]
[359666165,1746233440628,-450.0,0.000197,2]
[359666166,1746233440637,-644.52,0.000197,2]
[359666167,1746233440646,-212.43129338,0.000197,2]
[359666168,1746233440655,-450.0,0.000197,2]
[359666169,1746233440664,-557.92,0.000197,2]
[359666170,1746233440672,-450.0,0.000197,2]
[359666171,1746233440684,-471.36,0.000197,2]
[359666172,1746233440694,-337.06400703,0.000197,2]
[359666173,1746233440703,-450.0,0.000197,2]
[359666174,1746233440711,-450.0,0.000197,2]
[359666175,1746233440720,-485.01,0.000197,2]
[359666176,1746233440730,-450.0,0.000197,2]
[359666177,1746233440739,-450.0,0.000197,2]
[359666178,1746233440749,-535.68,0.000197,2]
[359666179,1746233440759,-450.0,0.000197,2]
[359666180,1746233440768,-450.0,0.000197,2]
[359666181,1746233440778,-450.0,0.000197,2]
[359666182,1746233440787,-450.0,0.000197,2]
[359666183,1746233440796,-450.0,0.000197,2]
[359666184,1746233440806,-450.0,0.000197,2]
[359666185,1746233440815,-450.0,0.000197,2]
[359666186,1746233440823,-450.0,0.000197,2]
[359666187,1746233440833,-450.0,0.000197,2]
[359666188,1746233440842,-450.0,0.000197,2]
[359666189,1746233440851,-481.19109644,0.000197,2]
[359666190,1746233440861,-450.0,0.000197,2]
[359666191,1746233440870,-450.0,0.000197,2]
[359666192,1746233440880,-450.0,0.000197,2]
[359666193,1746233440889,-450.0,0.000197,2]
[359666194,1746233440898,-450.0,0.000197,2]
[359666195,1746233440907,-450.0,0.000197,2]
[359666196,1746233440917,-450.0,0.000197,2]
[359666197,1746233440927,-450.0,0.000197,2]
[359666198,1746233440936,-450.0,0.000197,2]
[359666199,1746233440946,-450.0,0.000197,2]
[359666200,1746233440956,-450.0,0.000197,2]
[359666201,1746233440965,-546.25,0.000197,2]
[359666202,1746233440975,-807.85,0.000197,2]
[359666203,1746233440984,-538.33,0.000197,2]
[359666204,1746233440994,-450.0,0.000197,2]
[359666205,1746233441003,-547.5,0.000197,2]
[359666206,1746233441013,-450.0,0.000197,2]
[359666207,1746233441022,-450.0,0.000197,2]
[359666208,1746233441031,-450.0,0.000197,2]
[359666209,1746233441040,-1414.16,0.000197,2]
[359666210,1746233441050,-450.0,0.000197,2]
[359666211,1746233441059,-450.0,0.000197,2]